bitfinex/quotes_BTCUSD_20250508
["timestamp","ask_amount","ask_price","bid_price","bid_amount"]
[1746688984368,0.01007242,99281.0,99275.0,0.55353025]
[1746688984501,8.67e-05,99279.0,99277.0,0.4]
[1746688984912,0.0312,99278.0,99277.0,0.4]
[1746688986119,0.0312,99278.0,99277.0,0.402]
[1746688986505,0.0312,99278.0,99277.0,0.904]
[1746688988540,0.0151,99278.0,99277.0,0.904]
[1746688990013,0.2015406,99279.0,99277.0,0.904]
[1746688990671,0.21151211,99286.0,99277.0,0.904]
[1746688990672,0.010071,99295.0,99284.0,0.01007211]
[1746688990874,0.01007079,99297.0,99289.0,0.20143218]
[1746688991161,0.0100712,99293.0,99289.0,0.20143218]
[1746688991347,0.04582049,99300.0,99289.0,0.60143218]
[1746688991572,0.01007069,99298.0,99289.0,0.60143218]
[1746688991968,0.01007079,99297.0,99289.0,0.60143218]
[1746688992165,0.04582049,99300.0,99289.0,0.60143218]
[1746688992365,0.01007079,99297.0,99289.0,0.60143218]
[1746688992564,0.01007079,99297.0,99289.0,1.10143218]
[1746688992929,0.01007079,99297.0,99289.0,1.10243218]
[1746688993131,0.01007079,99297.0,99289.0,1.10343218]
[1746688994609,0.20141341,99299.0,99289.0,1.10343218]
[1746688994610,0.01007069,99298.0,99289.0,1.10343218]
[1746688995974,0.01007089,99296.0,99289.0,1.10343218]
[1746688996143,0.0100711,99294.0,99289.0,1.10343218]
[1746688996342,0.01007089,99296.0,99289.0,1.10343218]
[1746688996586,0.01007079,99297.0,99292.0,0.20142587]
[1746688996969,0.01007079,99297.0,99292.0,0.21149717]
[1746688997175,0.01007079,99297.0,99293.0,0.4]
[1746688997618,0.01007079,99297.0,99294.0,0.5]
[1746688998149,0.01007079,99297.0,99295.0,0.4]
[1746688998349,0.04582049,99300.0,99295.0,0.4]
[1746688999171,0.01007059,99299.0,99295.0,0.4]
[1746688999388,0.04582049,99300.0,99295.0,0.60141996]
[1746688999664,0.04582049,99300.0,99297.0,0.5]
[1746688999840,0.01007059,99299.0,99297.0,0.5]
[1746689000015,0.01007059,99299.0,99297.0,0.51857919]
[1746689000370,0.01006795,99325.0,99308.0,0.20139364]
[1746689000580,0.01006826,99322.0,99308.0,0.21840725]
[1746689000782,0.00213586,99309.0,99308.0,0.61639364]
[1746689001133,0.00213586,99309.0,99308.0,0.63159364]
[1746689001347,0.00213586,99309.0,99308.0,1.13159364]
[1746689001546,0.00213586,99309.0,99308.0,1.11639364]
[1746689001741,0.00213586,99309.0,99308.0,1.10139364]
[1746689002278,0.00204551,99309.0,99308.0,1.10139364]
[1746689002622,0.015017,99327.0,99326.0,0.20135714]
[1746689002828,0.015017,99327.0,99326.0,0.0314]
[1746689002975,0.01006785,99326.0,99315.0,0.02656897]
[1746689003177,0.015017,99327.0,99322.0,0.20136431]
[1746689003336,0.015017,99327.0,99320.0,0.01006846]
[1746689003543,0.015017,99327.0,99324.0,0.20136035]
[1746689004131,0.015017,99327.0,99324.0,0.71142841]
[1746689004703,0.016017,99327.0,99324.0,0.71142841]
[1746689004899,0.016017,99327.0,99324.0,0.70136035]
[1746689005104,0.016017,99327.0,99324.0,0.71142841]
[1746689005315,0.015017,99327.0,99324.0,0.71142841]
[1746689005650,0.016017,99327.0,99324.0,0.71142841]
[1746689006027,0.016017,99327.0,99324.0,0.70136035]
[1746689006563,0.016017,99327.0,99324.0,0.71142841]
[1746689006901,0.016017,99327.0,99326.0,0.20135714]
[1746689007688,0.015017,99327.0,99326.0,0.20135714]
[1746689008029,0.016017,99327.0,99326.0,0.20135714]
[1746689008228,0.016017,99327.0,99326.0,0.5]
[1746689010501,0.016017,99327.0,99326.0,0.9]
[1746689015243,0.016017,99327.0,99326.0,1.10135714]
[1746689019129,0.016017,99327.0,99326.0,1.47355714]
[1746689021709,0.016017,99327.0,99326.0,1.45735714]
[1746689021924,0.016017,99327.0,99326.0,1.47355714]
[1746689029271,0.002,99338.0,99337.0,0.20133485]
[1746689029421,0.002,99338.0,99337.0,0.23414784]
[1746689029620,0.002,99338.0,99337.0,0.23213485]
[1746689029836,0.002,99338.0,99337.0,0.63213485]
[1746689030199,0.002,99338.0,99337.0,0.61673485]
[1746689030399,0.003,99338.0,99337.0,1.11673485]
[1746689030824,0.003,99338.0,99337.0,1.10133485]
[1746689032321,0.003,99338.0,99337.0,0.70133485]
[1746689035018,0.003,99338.0,99337.0,0.49051264]
[1746689035417,0.003,99338.0,99337.0,0.69184749]
[1746689036259,0.003,99338.0,99337.0,1.09184749]
[1746689037705,0.00345276,99338.0,99337.0,1.09184749]
[1746689038686,0.00345276,99338.0,99337.0,1.19251441]
[1746689039813,0.00345276,99338.0,99337.0,1.53251441]
[1746689043937,0.00345276,99338.0,99337.0,1.23051264]
[1746689046169,0.002,99370.0,99362.0,0.20128389]
[1746689046370,0.002,99370.0,99368.0,0.20127203]
[1746689046571,0.0021358,99369.0,99368.0,0.31985137]
[1746689046791,0.0021358,99369.0,99368.0,0.71783895]
[1746689047340,0.0051358,99369.0,99368.0,0.73413895]
[1746689047936,0.0021358,99369.0,99368.0,0.73413895]
[1746689048155,0.0031358,99369.0,99368.0,0.73413895]
[1746689048561,0.00304549,99369.0,99368.0,0.73413895]
[1746689049224,0.00304549,99369.0,99368.0,1.22464895]
[1746689049746,0.00304549,99369.0,99368.0,1.56464895]
[1746689050935,0.00304549,99369.0,99368.0,1.5973222]
[1746689051338,0.00304549,99369.0,99368.0,1.5651222]
[1746689051952,0.00304549,99369.0,99368.0,1.5816222]
[1746689052133,0.00304549,99369.0,99368.0,1.5975222]
[1746689053730,0.00304549,99369.0,99368.0,1.5816222]
[1746689054952,0.00304549,99369.0,99368.0,1.58021902]
[1746689055150,0.00304549,99369.0,99368.0,1.56371902]
[1746689055355,0.00304549,99369.0,99368.0,1.26318325]
[1746689055866,0.03464549,99369.0,99368.0,1.26318325]
[1746689056856,0.03464549,99369.0,99368.0,0.92318325]
[1746689057406,0.03464549,99369.0,99368.0,0.52318325]
[1746689058191,0.03464549,99369.0,99368.0,0.49051]
[1746689058192,0.06208344,99369.0,99368.0,0.49051]
[1746689061052,0.03464549,99369.0,99368.0,0.49051]
[1746689063288,0.06309302,99369.0,99368.0,0.49051]
[1746689068883,0.16375994,99369.0,99368.0,0.49051]
[1746689070173,0.16275994,99369.0,99368.0,0.49051]
[1746689070675,0.16475994,99369.0,99368.0,0.49051]
[1746689071482,0.16675994,99369.0,99368.0,0.49051]
[1746689076305,0.1662747,99369.0,99368.0,0.49051]
[1746689076511,0.24650062,99369.0,99368.0,0.49051]
[1746689077404,0.24450062,99369.0,99368.0,0.49051]
[1746689077603,0.24650062,99369.0,99368.0,0.49051]
[1746689078009,0.25904147,99369.0,99368.0,0.49051]
[1746689078215,0.23107918,99369.0,99368.0,0.49051]
[1746689078509,0.01006714,99333.0,99325.0,0.002]
[1746689078715,0.01006714,99333.0,99326.0,0.0166]
[1746689078933,0.01006714,99333.0,99326.0,0.04847368]
[1746689079138,0.01006765,99328.0,99327.0,0.015]
[1746689079374,0.01006765,99328.0,99327.0,0.0302]
[1746689079835,0.01006765,99328.0,99327.0,0.03065276]
[1746689080031,0.21142232,99328.0,99327.0,0.00045276]
[1746689080571,0.21142232,99328.0,99327.0,0.50045276]
[1746689081921,0.21142232,99328.0,99327.0,0.50345276]
[1746689082128,0.21142232,99328.0,99327.0,0.50645276]
[1746689085827,0.21142232,99328.0,99327.0,0.90645276]
[1746689086668,0.21142232,99328.0,99327.0,0.74213796]
[1746689091360,0.01006694,99335.0,99331.0,0.01006735]
[1746689091486,0.01006694,99335.0,99330.0,0.0161]
[1746689091487,0.01006704,99334.0,99330.0,0.0161]
[1746689091888,0.01006714,99333.0,99332.0,0.4]
[1746689092106,0.21141009,99333.0,99332.0,0.4]
[1746689092904,0.21141009,99333.0,99332.0,0.73613]
[1746689093304,0.21141009,99333.0,99332.0,0.73813]
[1746689093518,0.21141009,99333.0,99332.0,0.74013]
[1746689094156,0.21141009,99333.0,99332.0,0.34013]
[1746689094359,0.22721009,99333.0,99332.0,0.34013]
[1746689094617,0.21141009,99333.0,99332.0,0.34013]
[1746689094792,0.21141009,99333.0,99332.0,0.74013]
[1746689096411,0.21141009,99333.0,99332.0,0.78979969]
[1746689096615,0.21141009,99333.0,99332.0,0.74013]
[1746689097470,0.21141009,99333.0,99332.0,0.55900632]
[1746689099477,0.21140772,99335.0,99332.0,0.57410632]
[1746689099814,0.21140772,99335.0,99332.0,0.55900632]
[1746689100476,0.21140772,99335.0,99332.0,0.55700632]
[1746689100680,0.01006694,99335.0,99332.0,0.55700632]
[1746689100890,0.01006694,99335.0,99332.0,0.55800632]
[1746689101104,0.20134093,99334.0,99332.0,0.55800632]
[1746689101468,0.20134093,99334.0,99332.0,0.55600632]
[1746689101774,0.20134093,99334.0,99332.0,0.55800632]
[1746689102085,0.20133067,99340.0,99334.0,0.20134093]
[1746689102300,0.01006674,99337.0,99335.0,0.0152]
[1746689102521,0.20133687,99336.0,99335.0,0.0161]
[1746689103003,0.20133687,99336.0,99335.0,0.4161]
[1746689103205,0.20133687,99336.0,99335.0,0.5711]
[1746689103483,0.01006674,99337.0,99335.0,0.5721]
[1746689103617,0.01006674,99337.0,99336.0,0.0166]
[1746689103795,0.20133687,99336.0,99335.0,0.556]
[1746689104000,0.20133687,99336.0,99335.0,0.557]
[1746689104200,0.20133687,99336.0,99335.0,0.556]
[1746689105330,0.20133687,99336.0,99335.0,0.555]
[1746689105702,0.20133687,99336.0,99335.0,0.556]
[1746689106257,0.20133687,99336.0,99335.0,0.557]
[1746689107396,0.23193687,99336.0,99335.0,0.157]
[1746689120927,0.23063687,99336.0,99335.0,0.157]
[1746689122032,0.28531087,99336.0,99335.0,0.157]
[1746689122777,0.23063687,99336.0,99335.0,0.157]
[1746689122983,0.23063687,99336.0,99335.0,0.155]
[1746689123396,0.23063687,99336.0,99335.0,0.157]
[1746689123699,0.33130379,99336.0,99335.0,0.157]
[1746689124767,0.33130379,99336.0,99335.0,0.156]
[1746689125335,0.33130379,99336.0,99335.0,0.155]
[1746689126542,0.40872666,99336.0,99335.0,0.155]
[1746689128435,0.2013866,99312.0,99309.0,0.0166]
[1746689128640,0.01006958,99309.0,99304.0,0.20140167]
[1746689128860,0.01006958,99309.0,99303.0,0.37263018]
[1746689128861,0.01006988,99306.0,99303.0,0.36256]
[1746689129037,0.21146767,99306.0,99303.0,0.36256]
[1746689129242,0.01006988,99306.0,99303.0,0.36256]
[1746689129635,0.01006988,99306.0,99304.0,0.44926671]
[1746689130080,0.01006978,99307.0,99304.0,0.45933679]
[1746689130269,0.01006978,99307.0,99304.0,0.44926671]
[1746689130898,0.2114673,99307.0,99304.0,0.44926671]
[1746689131032,0.2114673,99307.0,99304.0,0.47756826]
[1746689131234,0.20139972,99305.0,99304.0,0.47756826]
[1746689131759,0.20139972,99305.0,99304.0,0.33510134]
[1746689131959,0.20139972,99305.0,99304.0,0.33110134]
[1746689132147,0.20139972,99305.0,99304.0,0.33510134]
[1746689132354,0.20139972,99305.0,99304.0,0.33910134]
[1746689132555,0.20139972,99305.0,99304.0,0.33510134]
[1746689133114,0.20139972,99305.0,99304.0,0.34010134]
[1746689136245,0.01006978,99307.0,99305.0,0.0329]
[1746689136416,0.01006978,99307.0,99304.0,0.34010134]
[1746689136725,0.2013977,99306.0,99304.0,0.34010134]
[1746689136875,0.01006978,99307.0,99304.0,0.35640134]
[1746689137077,0.01006978,99307.0,99306.0,0.0152]
[1746689137490,0.01006978,99307.0,99305.0,0.004]
[1746689137714,0.21146739,99307.0,99305.0,0.004]
[1746689138080,0.21146739,99307.0,99306.0,0.0322]
[1746689138766,0.21146739,99307.0,99306.0,0.33499]
[1746689138974,0.21146739,99307.0,99306.0,0.31869]
[1746689139230,0.21146739,99307.0,99306.0,0.30679]
[1746689139404,0.21146739,99307.0,99306.0,0.31079]
[1746689139613,0.2114617,99309.0,99307.0,0.032]
[1746689139935,0.2114617,99309.0,99308.0,0.0157]
[1746689140205,0.2114617,99309.0,99306.0,0.008]
[1746689140384,0.20139567,99307.0,99306.0,0.008]
[1746689140611,0.20139567,99307.0,99306.0,0.004]
[1746689140935,0.2114617,99309.0,99306.0,0.004]
[1746689141595,0.01006968,99308.0,99304.0,0.22970257]
[1746689141748,0.01006968,99308.0,99305.0,0.01006998]
[1746689141948,0.01006968,99308.0,99307.0,0.004]
[1746689142334,0.01006968,99308.0,99307.0,0.5]
[1746689143519,0.01006968,99308.0,99307.0,0.507]
[1746689143708,0.01006958,99309.0,99307.0,0.507]
[1746689143909,0.21145413,99313.0,99308.0,0.01006968]
[1746689144130,0.21145693,99311.0,99308.0,0.01006968]
[1746689144343,0.01006947,99310.0,99307.0,0.507]
[1746689144475,0.01006947,99310.0,99307.0,0.007]
[1746689144676,0.01006947,99310.0,99307.0,0.003]
[1746689145139,0.01006947,99310.0,99307.0,0.007]
[1746689145320,0.01006947,99310.0,99307.0,0.004]
[1746689145495,0.01006947,99310.0,99308.0,0.5]
[1746689145674,0.01006947,99310.0,99308.0,0.503]
[1746689145880,0.01006947,99310.0,99308.0,0.5]
[1746689146830,0.01006947,99310.0,99308.0,0.503]
[1746689147127,0.01006947,99310.0,99309.0,0.00800756]
[1746689147503,0.01006947,99310.0,99308.0,0.503]
[1746689147705,0.01006947,99310.0,99309.0,0.00800878]
[1746689148130,0.01006947,99310.0,99308.0,0.003]
[1746689148274,0.01006947,99310.0,99309.0,0.00800878]
[1746689148678,0.01006947,99310.0,99309.0,0.5]
[1746689148882,0.01006947,99310.0,99309.0,0.50800878]
[1746689149082,0.01006947,99310.0,99309.0,0.51100878]
[1746689149346,0.01006947,99310.0,99309.0,0.51500878]
[1746689157392,0.01006937,99311.0,99309.0,0.51500878]
[1746689158414,0.01006937,99311.0,99309.0,0.51100878]
[1746689159039,0.01006937,99311.0,99309.0,0.51400878]
[1746689159246,0.21145842,99311.0,99309.0,0.51400878]
[1746689160908,0.22765842,99311.0,99309.0,0.51400878]
[1746689161153,0.21145842,99311.0,99309.0,0.51400878]
[1746689161928,0.03321368,99310.0,99309.0,0.51400878]
[1746689162256,0.1338806,99310.0,99309.0,0.51400878]
[1746689162823,0.1338806,99310.0,99309.0,0.50800878]
[1746689163029,0.1338806,99310.0,99309.0,0.51200878]
[1746689163473,0.1338806,99310.0,99309.0,0.51000878]
[1746689164064,0.14654987,99310.0,99309.0,0.51000878]
[1746689164466,0.14654987,99310.0,99309.0,0.50800878]
[1746689164783,0.14654987,99310.0,99309.0,0.38800878]
[1746689165077,0.14654987,99310.0,99309.0,0.38900878]
[1746689166537,0.16109072,99310.0,99309.0,0.38900878]
[1746689167300,0.16209072,99310.0,99309.0,0.00900878]
[1746689167713,0.01007018,99303.0,99300.0,0.002]
[1746689167899,0.1026806,99302.0,99300.0,0.002]
[1746689168104,0.0305,99301.0,99300.0,0.002]
[1746689168273,0.1331806,99301.0,99300.0,0.002]
[1746689169575,0.1331806,99301.0,99300.0,0.502]
[1746689170023,0.1331806,99301.0,99300.0,0.51020299]
[1746689170225,0.0305,99301.0,99300.0,0.51020299]
[1746689170434,0.20140581,99302.0,99300.0,0.51020299]
[1746689170590,0.30207273,99302.0,99300.0,0.51020299]
[1746689171225,0.31707273,99302.0,99300.0,0.51020299]
[1746689171599,0.20140581,99302.0,99300.0,0.51020299]
[1746689171960,0.20240581,99302.0,99300.0,0.51020299]
[1746689173458,0.0164,99301.0,99300.0,0.51020299]
[1746689173683,0.20240581,99302.0,99300.0,0.51020299]
[1746689174748,0.20140581,99302.0,99300.0,0.51020299]
[1746689175658,0.20240581,99302.0,99300.0,0.51020299]
[1746689176885,0.20240581,99302.0,99300.0,0.30958738]
[1746689178587,0.001,99302.0,99301.0,0.0157]
[1746689178752,0.001,99302.0,99301.0,0.0311]
[1746689178959,0.001,99302.0,99301.0,0.02388727]
[1746689179164,0.001,99302.0,99301.0,0.43928727]
[1746689179359,0.20140581,99302.0,99301.0,0.42388727]
[1746689179603,0.01007008,99304.0,99301.0,0.72526727]
[1746689179736,0.01006998,99305.0,99303.0,0.0155]
[1746689179943,0.01007008,99304.0,99301.0,0.70956727]
[1746689180174,0.20140378,99303.0,99301.0,0.70238]
[1746689180630,0.20140378,99303.0,99301.0,0.70438]
[1746689181088,0.20140378,99303.0,99301.0,0.70238]
[1746689181247,0.20140378,99303.0,99301.0,0.71818]
[1746689181455,0.20140378,99303.0,99301.0,0.72018]
[1746689181858,0.20140378,99303.0,99301.0,0.71918]
[1746689182791,0.20140378,99303.0,99301.0,0.72018]
[1746689182928,0.20140378,99303.0,99301.0,0.71918]
[1746689183268,0.20140378,99303.0,99301.0,0.72018]
[1746689184897,0.20140378,99303.0,99301.0,0.70438]
[1746689191057,0.01006998,99305.0,99303.0,0.0326]
[1746689191291,0.21146706,99307.0,99303.0,0.0161]
[1746689191462,0.21146706,99307.0,99304.0,0.00676075]
[1746689191662,0.21146706,99307.0,99305.0,0.4]
[1746689191870,0.01006978,99307.0,99306.0,0.00677178]
[1746689192426,0.2013977,99306.0,99305.0,0.30138]
[1746689193021,0.2013977,99306.0,99305.0,0.70138]
[1746689194757,0.2013977,99306.0,99305.0,0.70238]
[1746689195688,0.2013977,99306.0,99305.0,0.70338]
[1746689196807,0.2013977,99306.0,99305.0,0.70250606]
[1746689197023,0.2013977,99306.0,99305.0,0.70172085]
[1746689197217,0.01006978,99307.0,99305.0,0.70113195]
[1746689197418,0.2013977,99306.0,99305.0,0.7010338]
[1746689197647,0.2013977,99306.0,99305.0,0.70098473]
[1746689198068,0.2013977,99306.0,99305.0,0.69998473]
[1746689198467,0.2013977,99306.0,99305.0,0.70098473]
[1746689199892,0.2013977,99306.0,99305.0,0.69998473]
[1746689200105,0.2013977,99306.0,99305.0,0.70098473]
[1746689202845,0.01006978,99307.0,99305.0,0.70098473]
[1746689203310,0.01006978,99307.0,99305.0,0.30098473]
[1746689203643,0.01006968,99308.0,99306.0,0.4]
[1746689203844,0.20139567,99307.0,99306.0,0.4]
[1746689204069,0.01006958,99309.0,99306.0,0.4]
[1746689204269,0.01006937,99311.0,99306.0,0.4]
[1746689204445,0.01006958,99309.0,99306.0,0.4]
[1746689204634,0.01006927,99312.0,99307.0,0.20139567]
[1746689204986,0.01006927,99312.0,99307.0,0.50037567]
[1746689205209,0.01006947,99310.0,99307.0,0.50037567]
[1746689205346,0.01006947,99310.0,99307.0,0.29898]
[1746689205547,0.20139364,99308.0,99307.0,0.29898]
[1746689205773,0.21146014,99310.0,99307.0,0.29898]
[1746689206554,0.21146014,99310.0,99308.0,0.00677532]
[1746689207956,0.01006958,99309.0,99303.0,0.20140294]
[1746689208158,0.01006958,99309.0,99301.0,0.20140584]
[1746689208159,0.01006998,99305.0,99301.0,0.20140584]
[1746689208361,0.01006998,99305.0,99302.0,0.4]
[1746689208610,0.20139364,99308.0,99303.0,0.20140378]
[1746689209328,0.20139364,99308.0,99304.0,0.4]
[1746689209532,0.20139364,99308.0,99305.0,0.5]
[1746689209866,0.01006978,99307.0,99305.0,0.5]
[1746689210886,0.01006978,99307.0,99305.0,0.501]
[1746689211702,0.01006978,99307.0,99305.0,0.5002]
[1746689211905,0.2013977,99306.0,99305.0,0.5012]
[1746689212113,0.2168977,99306.0,99305.0,0.5012]
[1746689212312,0.2168977,99306.0,99305.0,0.5002]
[1746689212567,0.2168977,99306.0,99305.0,0.5012]
[1746689212724,0.2013977,99306.0,99305.0,0.5012]
[1746689213244,0.2013977,99306.0,99305.0,0.5002]
[1746689213590,0.2013977,99306.0,99305.0,0.5012]
[1746689214110,0.2319977,99306.0,99305.0,0.5012]
[1746689214241,0.2319977,99306.0,99305.0,0.5002]
[1746689214451,0.2168977,99306.0,99305.0,0.5002]
[1746689214659,0.2168977,99306.0,99305.0,0.5012]
[1746689217484,0.2333977,99306.0,99305.0,0.5012]
[1746689217968,0.32017469,99306.0,99305.0,0.5012]
[1746689220317,0.2333977,99306.0,99305.0,0.5012]
[1746689221669,0.33406462,99306.0,99305.0,0.50802582]
[1746689222121,0.34860547,99306.0,99305.0,0.50802582]
[1746689222679,0.34860547,99306.0,99305.0,0.00882582]
[1746689222880,0.01454085,99305.0,99274.0,0.20146188]
[1746689223096,0.21151869,99282.0,99280.0,0.11716448]
[1746689223276,0.20145103,99280.0,99274.0,0.24154646]
[1746689224029,0.01007272,99278.0,99274.0,0.25161959]
[1746689224382,0.01007262,99279.0,99275.0,0.01007302]
[1746689224571,0.01007262,99279.0,99277.0,0.5]
[1746689225579,0.01007242,99281.0,99278.0,0.4]
[1746689225831,0.01007221,99283.0,99279.0,0.01007262]
[1746689225968,0.01007231,99282.0,99278.0,0.01007272]
[1746689226390,0.01007221,99283.0,99279.0,0.41007262]
[1746689227257,0.01007221,99283.0,99281.0,0.5]
[1746689227490,0.21349128,99295.0,99290.0,0.0100715]
[1746689227788,0.21349128,99295.0,99291.0,0.20142789]
[1746689227908,0.0100711,99294.0,99289.0,0.20143141]
[1746689228113,0.0100714,99291.0,99287.0,0.01007181]
[1746689228557,0.0100714,99291.0,99290.0,0.001]
[1746689228908,0.0100714,99291.0,99287.0,0.01007181]
[1746689229150,0.0100714,99291.0,99289.0,0.501]
[1746689229567,0.0100714,99291.0,99289.0,0.5]
[1746689229794,0.0100714,99291.0,99290.0,0.002]
[1746689231089,0.0100714,99291.0,99290.0,0.502]
[1746689231822,0.0100714,99291.0,99290.0,0.504]
[1746689232333,0.21149952,99291.0,99290.0,0.504]
[1746689234090,0.2771624,99291.0,99290.0,0.504]
[1746689234287,0.3086624,99291.0,99290.0,0.504]
[1746689234506,0.24299952,99291.0,99290.0,0.504]
[1746689234880,0.21149952,99291.0,99290.0,0.504]
[1746689236030,0.21149952,99291.0,99290.0,0.5035]
[1746689236694,0.21149952,99291.0,99290.0,0.51035415]
[1746689237515,0.24209952,99291.0,99290.0,0.51035415]
[1746689238785,0.3108224,99291.0,99290.0,0.51035415]
[1746689243461,0.24209952,99291.0,99290.0,0.51035415]
[1746689243885,0.22659952,99291.0,99290.0,0.51035415]
[1746689244224,0.21149952,99291.0,99290.0,0.51035415]
[1746689249313,0.21149952,99291.0,99290.0,0.28996879]
[1746689254027,0.21110587,99291.0,99290.0,0.28996879]
[1746689260332,0.22620587,99291.0,99290.0,0.28996879]
[1746689260528,0.29333938,99291.0,99290.0,0.28996879]
[1746689261342,0.22620587,99291.0,99290.0,0.28996879]
[1746689261942,0.21110587,99291.0,99290.0,0.28996879]
[1746689265041,0.012071,99295.0,99290.0,0.28996879]
[1746689265356,0.0100712,99293.0,99290.0,0.28996879]
[1746689265974,0.20142609,99292.0,99290.0,0.28996879]
[1746689266174,0.0100712,99293.0,99290.0,0.28996879]
[1746689266374,0.20142609,99292.0,99290.0,0.30656879]
[1746689266836,0.20142609,99292.0,99290.0,0.30456879]
[1746689267245,0.20142609,99292.0,99290.0,0.30356879]
[1746689267448,0.20142609,99292.0,99290.0,0.30456879]
[1746689267817,0.20142609,99292.0,99290.0,0.30356879]
[1746689268013,0.0100712,99293.0,99290.0,0.30456879]
[1746689268219,0.0100712,99293.0,99290.0,0.30356879]
[1746689268466,0.21149721,99293.0,99290.0,0.30356879]
[1746689268646,0.21149721,99293.0,99290.0,0.30556879]
[1746689268847,0.21149721,99293.0,99290.0,0.30456879]
[1746689269048,0.21149721,99293.0,99290.0,0.30556879]
[1746689269250,0.0100711,99294.0,99290.0,0.30556879]
[1746689269422,0.21149668,99293.0,99290.0,0.28896879]
[1746689269630,0.20142812,99291.0,99290.0,0.28896879]
[1746689270053,0.20142812,99291.0,99290.0,0.28696879]
[1746689270249,0.20142812,99291.0,99290.0,0.28896879]
[1746689270453,0.29898355,99291.0,99290.0,0.28796879]
[1746689270652,0.26608355,99291.0,99290.0,0.28996879]
[1746689270827,0.26608355,99291.0,99290.0,0.28796879]
[1746689271011,0.26608355,99291.0,99290.0,0.28996879]
[1746689271711,0.002,99295.0,99290.0,0.32126879]
[1746689271918,0.002,99295.0,99294.0,0.0313]
[1746689272173,0.002,99295.0,99294.0,0.2415666]
[1746689272400,0.002,99295.0,99294.0,0.63955259]
[1746689273548,0.002,99295.0,99294.0,0.91866259]
[1746689273747,0.002,99295.0,99294.0,0.91966259]
[1746689274550,0.002,99295.0,99294.0,0.92066259]
[1746689279187,0.002,99295.0,99294.0,0.92048072]
[1746689279510,0.002,99295.0,99294.0,0.90526259]
[1746689281629,0.002,99295.0,99294.0,1.00592951]
[1746689282174,0.002,99295.0,99294.0,1.02232951]
[1746689282964,0.002,99295.0,99294.0,1.02132951]
[1746689283166,0.002,99295.0,99294.0,1.02232951]
[1746689283366,0.002,99295.0,99294.0,1.72232951]
[1746689283863,0.002,99295.0,99294.0,1.72132951]
[1746689284068,0.002,99295.0,99294.0,1.60826259]
[1746689284270,0.002,99295.0,99294.0,1.61226259]
[1746689286385,0.002,99295.0,99294.0,0.91226259]
[1746689287622,0.002,99295.0,99294.0,0.89636259]
[1746689292639,0.002,99295.0,99294.0,0.49636259]
[1746689293234,0.002,99295.0,99294.0,0.89636259]
[1746689293820,0.002,99295.0,99294.0,0.94603228]
[1746689294022,0.002,99295.0,99294.0,0.89636259]
[1746689303477,0.002,99295.0,99294.0,0.69494056]
[1746689304241,0.002,99295.0,99294.0,0.89636259]
[1746689306239,0.002,99295.0,99294.0,0.69376833]
[1746689306470,0.002,99295.0,99294.0,0.69932451]
[1746689308683,0.002,99295.0,99294.0,0.83129143]
[1746689309447,0.002,99295.0,99294.0,1.53129143]
[1746689310455,4.525e-05,99306.0,99305.0,0.20139972]
[1746689310678,4.525e-05,99306.0,99305.0,0.31968048]
[1746689310880,4.525e-05,99306.0,99305.0,0.32323618]
[1746689311087,4.525e-05,99306.0,99305.0,0.73843618]
[1746689311627,4.525e-05,99306.0,99305.0,0.80657618]
[1746689312109,4.525e-05,99306.0,99305.0,0.80757618]
[1746689312826,4.525e-05,99306.0,99305.0,0.80957618]
[1746689313136,4.525e-05,99306.0,99305.0,0.81257618]
[1746689317993,0.01006816,99323.0,99305.0,0.81257618]
[1746689317994,0.2090813,99324.0,99317.0,0.20137352]
[1746689318390,0.2090813,99324.0,99318.0,0.00548969]
[1746689318815,0.01006836,99321.0,99318.0,0.00548969]
[1746689319821,0.01006836,99321.0,99319.0,0.08334]
[1746689320221,0.01006836,99321.0,99320.0,0.00548727]
[1746689321495,0.02566826,99322.0,99320.0,0.08334]
[1746689321718,0.02566826,99322.0,99320.0,0.08882727]
[1746689322129,0.00771809,99324.0,99320.0,0.13623298]
[1746689322328,0.01006816,99323.0,99320.0,0.13623298]
[1746689322502,0.0158,99323.0,99320.0,0.13623298]
[1746689323167,0.0158,99323.0,99320.0,0.3376022]
[1746689323736,0.0158,99323.0,99321.0,0.2013655]
[1746689323941,0.0158,99323.0,99322.0,0.00548484]
[1746689324142,0.0158,99323.0,99320.0,0.33211493]
[1746689324326,0.0158,99323.0,99321.0,0.00548605]
[1746689325533,0.0158,99323.0,99322.0,0.20136525]
[1746689325739,0.02626795,99325.0,99322.0,0.29016012]
[1746689326162,0.02626795,99325.0,99323.0,0.4]
[1746689326387,0.02626795,99325.0,99324.0,0.00545608]
[1746689327534,0.02626795,99325.0,99324.0,0.08879608]
[1746689329693,0.02626795,99325.0,99324.0,0.48879608]
[1746689331925,0.04428163,99325.0,99324.0,0.08879608]
[1746689332293,0.04428163,99325.0,99324.0,0.08334]
[1746689332865,0.04226795,99325.0,99324.0,0.08334]
[1746689333038,0.04428163,99325.0,99324.0,0.08334]
[1746689337692,0.04226795,99325.0,99324.0,0.08334]
[1746689338595,0.00201368,99325.0,99324.0,0.08334]
[1746689338796,0.00210031,99326.0,99324.0,0.08334]
[1746689339113,0.00210031,99326.0,99325.0,0.00530135]
[1746689339544,0.20135917,99325.0,99324.0,0.08334]
[1746689339693,0.2114315,99323.0,99320.0,0.03999919]
[1746689339898,0.20135917,99325.0,99319.0,0.20136956]
[1746689339899,0.01006806,99324.0,99319.0,0.20136956]
[1746689340142,0.01006806,99324.0,99321.0,0.0053244]
[1746689340302,0.01006806,99324.0,99320.0,0.00532561]
[1746689340503,0.01006806,99324.0,99319.0,0.20136956]
[1746689340726,0.01006806,99324.0,99321.0,0.00532561]
[1746689341031,0.01006806,99324.0,99322.0,0.00533167]
[1746689341382,0.01015448,99326.0,99322.0,0.00533167]
[1746689341562,0.01208163,99325.0,99322.0,0.5]
[1746689341969,0.01208163,99325.0,99323.0,0.00534077]
[1746689343002,0.01006806,99324.0,99319.0,0.24263903]
[1746689343175,0.01006806,99324.0,99320.0,0.20136728]
[1746689343378,0.01208163,99325.0,99320.0,0.20663527]
[1746689343951,0.00201368,99325.0,99324.0,0.5]
[1746689344203,0.00201368,99325.0,99324.0,0.47434169]
[1746689345361,0.00201368,99325.0,99324.0,0.67570289]
[1746689345538,8.663e-05,99326.0,99324.0,0.67570289]
[1746689345710,8.663e-05,99326.0,99324.0,0.49199661]
[1746689346882,8.663e-05,99326.0,99324.0,0.29063541]
[1746689349992,0.20345761,99326.0,99324.0,0.29063541]